bitfinex/quotes_ETHUSD_20240821
["timestamp","ask_amount","ask_price","bid_price","bid_amount"]
[1724272356007,1.98214288,2645.8,2645.6,0.46679]
[1724272356827,1.98214288,2645.7,2645.6,0.12]
[1724272359070,9.54156288,2645.7,2645.6,0.12]
[1724272359273,7.55942,2645.7,2645.6,0.12]
[1724272359475,10.98352,2645.7,2645.6,0.12]
[1724272359736,13.36232218,2645.7,2645.6,0.12]
[1724272359974,13.35914114,2645.7,2645.6,0.12]
[1724272361505,15.73780623,2645.7,2645.6,0.12]
[1724272362222,15.73778391,2645.7,2645.6,0.12]
[1724272362519,15.73779453,2645.7,2645.6,0.12]
[1724272363377,19.51750453,2645.7,2645.6,0.12]
[1724272363678,20.46393438,2645.7,2645.6,0.12]
[1724272364481,17.68885114,2645.7,2645.6,0.12]
[1724272366231,20.46393438,2645.7,2645.6,0.12]
[1724272366733,23.46393438,2645.7,2645.6,0.12]
[1724272367088,20.68885114,2645.7,2645.6,0.12]
[1724272367288,23.4629936,2645.7,2645.6,0.12]
[1724272367884,20.68885114,2645.7,2645.6,0.12]
[1724272368099,11.10942,2645.7,2645.6,0.12]
[1724272368381,12.93663364,2645.7,2645.6,0.12]
[1724272370130,12.9362585,2645.7,2645.6,0.12]
[1724272374641,10.55942,2645.7,2645.6,0.12]
[1724272374805,12.93585032,2645.7,2645.6,0.12]
[1724272377863,9.53945322,2645.7,2645.6,0.12]
[1724272379294,9.53948183,2645.7,2645.6,0.12]
[1724272379493,5.75977183,2645.7,2645.6,0.12]
[1724272380048,3.77971,2645.7,2645.6,0.12]
[1724272380285,5.75964183,2645.8,2645.6,3.4817]
[1724272380513,1.98006183,2645.8,2645.6,3.4817]
[1724272381748,3.77971,2645.7,2645.6,3.4817]
[1724272381942,5.75964183,2645.8,2645.6,3.4817]
[1724272382311,3.77971,2645.7,2645.6,3.4817]
[1724272382464,1.98003482,2645.7,2645.6,3.4817]
[1724272382789,5.75961482,2645.8,2645.6,3.4817]
[1724272384549,7.36661482,2645.8,2645.6,3.82987]
[1724272385004,14.21906,2646.2,2645.6,3.82987]
[1724272385005,1.98003482,2645.9,2645.6,3.82987]
[1724272385149,1.98003482,2646.0,2645.6,3.82987]
[1724272385345,3.58703482,2646.1,2645.6,3.82987]
[1724272385659,7.44,2646.2,2645.8,3.4296]
[1724272385660,1.98003482,2646.2,2645.8,3.4296]
[1724272386703,3.58703482,2646.3,2645.8,3.4296]
[1724272387433,1.607,2646.3,2645.8,3.4296]
[1724272387549,3.58703482,2646.3,2645.8,3.4296]
[1724272388077,3.77971,2645.7,2645.6,0.12]
[1724272388287,9.16642,2645.7,2645.6,0.12]
[1724272388593,24.70857178,2645.7,2645.6,0.12]
[1724272388776,26.11224,2645.7,2645.6,0.12]
[1724272389091,3.78141,2644.6,2643.8,3.4112]
[1724272389301,3.78144,2644.5,2643.8,3.4112]
[1724272389485,3.78141,2644.6,2643.8,3.4112]
[1724272390366,5.75990576,2644.8,2643.8,3.4112]
[1724272390677,7.56218,2644.8,2643.9,3.4492]
[1724272391081,3.78105,2644.8,2643.9,3.4492]
[1724272391302,3.78105,2644.8,2644.0,0.723152]
[1724272391591,9.53919763,2645.0,2644.1,7.77879996]
[1724272391748,1.97760763,2645.0,2644.1,3.4492]
[1724272391944,3.78112,2644.8,2644.1,3.4492]
[1724272392150,3.78112,2644.8,2644.1,3.8664352]
[1724272392350,3.78116,2644.7,2644.1,3.8664352]
[1724272392591,3.78116,2644.7,2644.1,3.4492]
[1724272392948,3.78153,2644.5,2643.8,3.4492]
[1724272393149,3.78182,2644.3,2643.8,3.4492]
[1724272393657,5.75942763,2644.3,2643.8,3.4492]
[1724272393969,3.78182,2644.3,2643.8,3.4492]
[1724272397675,8.319981,2644.3,2643.8,3.4492]
[1724272397902,3.78182,2644.3,2643.8,3.4492]
[1724272398126,7.56364,2644.3,2643.8,3.4492]
[1724272398476,3.78182,2644.3,2643.8,3.4492]
[1724272399310,3.78181,2644.3,2643.8,3.4492]
[1724272399493,0.378181,2644.2,2643.8,3.4492]
[1724272400027,3.78201,2644.1,2643.8,3.4492]
[1724272401027,3.78181,2644.3,2643.8,3.4492]
[1724272401254,3.5628,2644.3,2643.5,3.5347]
[1724272401380,3.78266,2643.7,2643.3,4.12726199]
[1724272401579,7.56533,2643.7,2643.3,3.5347]
[1724272401810,3.78281,2643.6,2643.3,3.5347]
[1724272402031,3.78266,2643.7,2643.3,3.5347]
[1724272402682,3.78208,2644.1,2643.3,3.88817]
[1724272402926,6.78218,2644.0,2643.3,3.88817]
[1724272403280,3.7823,2643.9,2643.3,3.5347]
[1724272403988,3.0,2644.0,2643.3,3.5347]
[1724272404218,6.78215,2644.0,2643.3,3.5347]
[1724272404425,3.78229,2643.9,2643.3,3.5347]
[1724272404945,7.56467,2643.9,2643.3,3.5347]
[1724272405226,3.78264,2643.7,2643.3,3.5347]
[1724272405623,3.78229,2643.9,2643.3,3.5347]
[1724272405984,3.0,2644.0,2643.4,3.4067]
[1724272406381,6.78217,2644.0,2643.4,3.4067]
[1724272406584,3.0,2644.0,2643.4,3.4067]
[1724272406993,3.7823,2643.9,2643.4,3.4067]
[1724272407449,4.422206,2644.0,2643.4,3.4067]
[1724272408035,8.204396,2644.0,2643.4,3.4067]
[1724272408918,7.44,2644.1,2643.4,3.4946]
[1724272409244,3.78277,2643.6,2643.4,3.4946]
[1724272409389,3.78277,2643.6,2642.9,3.3141]
[1724272409590,3.78258,2643.7,2642.9,7.09779]
[1724272409937,3.78258,2643.7,2643.1,3.546]
[1724272411866,3.7828,2643.6,2643.1,3.546]
[1724272412068,10.96723,2643.8,2643.1,3.546]
[1724272412222,7.56623,2643.4,2643.1,3.546]
[1724272412422,8.322853,2643.4,2642.7,3.5263]
[1724272412622,4.539713,2643.4,2642.7,3.5263]
[1724272413028,4.539703,2643.4,2642.7,3.5263]
[1724272413925,4.539703,2643.4,2642.3,0.59307051]
[1724272413926,3.858,2643.2,2642.4,3.5263]
[1724272414129,3.78365,2643.0,2642.4,3.5263]
[1724272415279,3.78372,2642.9,2642.4,3.5263]
[1724272415586,3.78387,2642.8,2642.1,3.5263]
[1724272416981,3.78431,2642.5,2642.0,3.5036]
[1724272417186,3.7846,2642.3,2641.8,0.11669274]
[1724272417698,7.56928,2642.3,2641.8,0.11669274]
[1724272417999,3.7846,2642.3,2641.8,0.11669274]
[1724272418496,7.56874,2642.5,2641.8,0.11669274]
[1724272418663,5.21551746,2642.5,2641.8,0.11669274]
[1724272418868,3.78447,2642.4,2641.8,0.11669274]
[1724272420574,5.21551746,2642.5,2641.8,0.11669274]
[1724272420784,5.21556746,2642.5,2641.9,3.5756]
[1724272421092,3.858,2642.6,2641.9,3.5756]
[1724272421093,0.756623,2642.4,2641.9,3.5756]
[1724272421403,3.858,2642.6,2641.9,3.5756]
[1724272421404,3.7843,2642.5,2641.9,3.5756]
[1724272422516,14.22388,2642.8,2641.9,3.5756]
[1724272422805,3.78417,2642.6,2641.9,3.5756]
[1724272423765,3.78417,2642.6,2641.8,0.11669274]
[1724272423766,3.7849,2642.1,2641.8,0.11669274]
[1724272423965,0.37849,2642.0,2641.8,0.11669274]
[1724272424277,7.44,2642.5,2641.9,3.5858]
[1724272424478,7.44,2642.5,2642.3,3.5858]
[1724272425505,19.7,2643.0,2642.3,3.5858]
[1724272425712,11.22316,2643.3,2642.4,3.78431]
[1724272425897,1.122316,2643.2,2642.4,7.56865]
[1724272426309,1.122316,2643.2,2642.5,3.78427]
[1724272427502,1.122316,2643.2,2642.4,3.78431]
[1724272427785,11.22316,2643.3,2642.4,7.56865]
[1724272428256,11.22316,2643.3,2642.4,3.78431]
[1724272428386,11.22316,2643.3,2642.4,7.56865]
[1724272428727,11.22316,2643.3,2642.4,3.78431]
[1724272428952,7.44,2643.3,2642.5,3.78428]
[1724272429083,7.44,2643.3,2642.7,3.2739]
[1724272429725,11.22325,2643.3,2642.7,3.2739]
[1724272431113,3.78329,2643.2,2642.7,3.2739]
[1724272431984,11.22322,2643.3,2642.7,3.2739]
[1724272432211,5.283949,2643.2,2642.7,3.2739]
[1724272432737,3.78387,2642.8,2642.4,3.2739]
[1724272432941,3.78409,2642.7,2642.0,3.2739]
[1724272433236,3.78416,2642.6,2642.0,3.2739]
[1724272433803,3.78401,2642.7,2642.0,3.99147227]
[1724272434005,3.78417,2642.6,2642.0,3.99147227]
[1724272434336,3.78417,2642.6,2642.0,3.2739]
[1724272434803,11.22395,2642.8,2642.0,7.05888]
[1724272435319,15.00789,2642.8,2642.0,7.05888]
[1724272435499,11.22394,2642.8,2642.0,7.05888]
[1724272435699,3.78402,2642.7,2642.0,4.36996927]
[1724272436444,3.78402,2642.7,2642.0,8.15495927]
[1724272437732,3.78402,2642.7,2642.0,4.36996927]
[1724272437903,7.44,2642.8,2642.0,4.36996927]
[1724272438105,7.44,2642.8,2642.0,3.2739]
[1724272438445,7.44,2642.8,2642.1,3.78481]
[1724272438646,11.22387,2642.8,2642.0,10.8437]
[1724272438814,11.22387,2642.8,2642.1,3.78486]
[1724272439144,7.44,2642.8,2642.2,3.7847]
[1724272439347,7.44,2642.8,2642.3,0.37847]
[1724272439952,7.44,2642.8,2642.2,3.7847]
[1724272440305,7.44,2642.8,2642.0,10.84364]
[1724272440533,7.44,2642.8,2642.3,3.53]
[1724272441144,11.22391,2642.8,2642.3,3.53]
[1724272441359,11.22391,2642.8,2641.8,3.90196274]
[1724272441360,3.78421,2642.6,2641.9,3.53]
[1724272442312,4.906441,2642.7,2641.9,3.53]
[1724272442515,3.78437,2642.5,2641.9,3.53]
[1724272445927,4.906471,2642.7,2641.9,3.53]
[1724272446132,3.78415,2642.6,2641.9,3.53]
[1724272446327,5.4046041,2642.6,2641.9,3.53]
[1724272447025,3.78415,2642.6,2641.9,3.53]
[1724272447226,7.44,2642.8,2642.2,3.78471]
[1724272447443,7.44,2642.8,2642.3,3.5536]
[1724272447860,16.04358,2643.0,2642.3,3.5536]
[1724272448815,16.05009472,2643.2,2642.3,3.5536]
[1724272449061,3.78355,2643.1,2642.3,3.5536]
[1724272449416,3.78355,2643.1,2642.4,3.78443]
[1724272449620,6.858,2643.2,2642.4,3.78434]
[1724272449912,10.6413,2643.2,2642.4,3.78434]
[1724272450141,1.26129592,2643.1,2642.3,3.5536]
[1724272450530,3.78359,2643.0,2642.3,3.5536]
[1724272451250,3.78359,2643.0,2642.3,7.33816]
[1724272453419,7.243,2642.9,2642.3,3.5536]
[1724272453668,1.102659,2642.8,2642.3,3.5536]
[1724272453862,5.75524918,2643.0,2642.3,3.5536]
[1724272454163,5.75727241,2643.0,2642.3,3.5536]
[1724272454569,3.858,2642.9,2642.3,3.5536]
[1724272454722,3.858,2642.9,2641.9,3.3065]
[1724272454723,7.2963,2642.7,2641.9,3.3065]
[1724272454924,7.64267,2642.3,2641.8,0.11669274]
[1724272455422,1.97368241,2642.4,2641.8,3.52479274]
[1724272455667,4.3421013,2642.7,2642.3,3.4081]
[1724272455876,7.44,2642.8,2642.3,3.4081]
[1724272457367,7.44,2642.8,2642.4,3.78443]
[1724272457542,12.26,2643.1,2642.4,3.78443]
[1724272457543,1.97368241,2643.0,2642.5,0.719253]
[1724272457923,1.97368241,2643.0,2642.5,4.503533]
[1724272458127,1.97368241,2643.0,2642.6,3.4081]
[1724272458327,1.97645338,2643.0,2642.6,3.4081]
[1724272459142,1.97645338,2643.1,2642.6,3.4081]
[1724272459365,1.97645338,2642.9,2642.6,3.8208353]
[1724272459545,2.37174405,2643.2,2642.6,3.8208353]
[1724272459546,1.97645338,2643.0,2642.6,3.8208353]
[1724272460031,1.97645338,2643.1,2642.6,3.8208353]
[1724272460241,1.97645338,2643.0,2642.6,3.8208353]
[1724272460778,5.76018338,2642.9,2642.2,3.4081]
[1724272460934,1.97645338,2642.8,2642.2,3.4081]
[1724272462640,1.97699782,2642.7,2642.2,3.4081]
[1724272462848,5.76101782,2642.7,2641.9,3.4081]
[1724272463173,3.78444,2642.4,2641.9,3.4081]
[1724272463384,5.76143782,2642.4,2641.9,3.4081]
[1724272465041,1.97699782,2642.4,2641.9,3.4081]
[1724272465430,1.97699782,2642.5,2641.9,3.4081]
[1724272465980,5.76128782,2642.5,2641.9,3.4081]
[1724272466755,1.97699782,2642.5,2641.9,3.77324836]
[1724272466933,1.97699782,2642.4,2641.9,3.4081]
[1724272467138,3.78438,2642.5,2641.9,3.4081]
[1724272467441,1.97708126,2642.3,2641.8,0.11669274]
[1724272468078,1.97708126,2642.4,2641.8,0.11669274]
[1724272468387,3.91289514,2642.4,2641.8,0.11669274]
[1724272468544,7.69733514,2642.4,2641.8,0.11669274]
[1724272468738,3.78467,2642.3,2641.8,0.11669274]
[1724272469042,1.97708126,2642.2,2641.8,0.11669274]
[1724272471886,5.76136748,2642.1,2641.8,0.11669274]
[1724272472243,3.78515,2641.9,2641.8,0.11669274]
[1724272473613,14.7679,2641.9,2641.8,0.11669274]
[1724272473881,11.4599,2641.9,2641.8,0.11669274]
[1724272474641,3.78515,2641.9,2641.8,0.11669274]
[1724272474836,1.97443611,2641.9,2641.8,0.11669274]
[1724272475091,5.75940611,2642.1,2641.8,0.11669274]
[1724272475285,6.95343953,2642.1,2641.8,0.11669274]
[1724272475442,3.78502,2642.0,2641.8,0.11669274]
[1724272476907,3.16758311,2642.1,2641.8,0.11669274]
[1724272476908,9.54384969,2641.9,2641.8,0.11669274]
[1724272477185,7.5703,2641.9,2641.8,0.11669274]
[1724272477403,10.44660668,2641.9,2641.8,0.11669274]
[1724272477947,10.99660668,2641.9,2641.8,0.11669274]
[1724272478385,10.44660668,2641.9,2641.8,0.11669274]
[1724272478596,4.6881319,2641.9,2641.8,0.11669274]
[1724272479100,8.4732819,2641.9,2641.8,0.11669274]
[1724272479387,10.44660668,2641.9,2641.8,0.11669274]
[1724272480094,8.4732819,2641.9,2641.8,0.11669274]
[1724272480396,14.85584927,2641.9,2641.8,0.11669274]
[1724272480548,17.85584927,2641.9,2641.8,0.11669274]
[1724272480749,17.85531114,2641.9,2641.8,0.11669274]
[1724272480988,7.6881319,2641.9,2641.8,0.11669274]
[1724272481948,3.78504,2642.0,2641.8,0.11669274]
[1724272483248,5.75883924,2642.2,2641.8,0.11669274]
[1724272483450,3.78481,2642.2,2641.8,0.11669274]
[1724272484464,3.78452,2642.4,2641.9,3.2875]
[1724272484903,3.78452,2642.4,2641.9,3.64058836]
[1724272486050,1.97365135,2642.5,2641.9,3.64058836]
[1724272486592,13.19788135,2642.6,2641.9,3.64058836]
[1724272487100,11.22423,2642.6,2641.9,3.64058836]
[1724272487254,3.78429,2642.5,2641.9,3.64058836]
[1724272487453,13.19788135,2642.6,2641.9,3.64058836]
[1724272487762,15.00851,2642.6,2642.0,0.37572811]
[1724272487971,11.22423,2642.6,2642.0,0.37572811]
[1724272488406,16.98214135,2642.6,2642.0,0.37572811]
[1724272488554,13.19788135,2642.6,2642.0,0.37572811]
[1724272488954,11.22423,2642.6,2642.0,0.37572811]
[1724272489700,3.78466,2642.3,2641.9,3.2875]
[1724272490719,3.78435,2642.5,2641.9,3.2875]
[1724272490920,9.41397785,2642.6,2641.9,3.2875]
[1724272491275,7.44,2642.6,2641.9,3.2875]
[1724272491475,7.44,2642.6,2642.0,0.71894127]
[1724272491717,3.78433,2642.5,2642.0,0.71894127]
[1724272491920,3.78433,2642.5,2641.9,3.2875]
[1724272492340,7.44,2642.6,2641.9,3.2875]
[1724272492493,1.97397785,2643.0,2642.5,3.2875]
[1724272492854,11.22329,2643.2,2642.5,3.2875]
[1724272493119,11.22329,2643.2,2642.3,3.78457]
[1724272493120,7.44,2643.2,2642.6,0.32875]
[1724272493323,7.44,2643.2,2642.7,3.2875]
[1724272494022,3.78356,2643.1,2642.7,3.2875]
[1724272494170,3.7836,2643.0,2642.7,3.2875]
[1724272494999,11.2233,2643.2,2642.7,3.2875]
[1724272495223,11.2233,2643.2,2642.0,3.0]
[1724272495224,3.78396,2642.8,2642.2,3.5623]
[1724272495370,5.75823686,2642.8,2642.2,3.5623]
[1724272496126,3.78396,2642.8,2642.2,3.5623]
[1724272496289,1.97427686,2642.9,2642.2,3.5623]
[1724272496488,5.75790686,2643.0,2642.2,3.5623]
[1724272496693,3.78374,2642.9,2642.2,4.297028]
[1724272496920,5.75801686,2642.9,2642.2,4.297028]
[1724272497075,5.75801686,2642.9,2642.2,3.5623]
[1724272498379,5.75825668,2642.9,2642.2,3.5623]
[1724272499399,1.97451668,2642.9,2642.2,3.5623]
[1724272499596,9.41451668,2643.1,2642.3,3.78447]
[1724272499793,9.41451668,2643.1,2642.4,3.2863]
[1724272500001,9.41451668,2643.1,2642.5,4.187277]
[1724272500199,7.44,2643.1,2642.5,4.187277]
[1724272500759,7.44,2643.1,2642.6,3.5469]
[1724272501779,1.97429174,2643.5,2642.9,3.78361]
[1724272501911,1.97429174,2643.5,2642.5,5.191367]
[1724272501912,9.41429174,2643.7,2643.3,3.78314]
[1724272502106,7.44,2643.7,2643.3,3.5115]
[1724272502320,1.97429174,2644.0,2643.3,3.5115]
[1724272502554,25.45631174,2644.1,2643.3,3.5115]
[1724272502736,29.23841174,2644.1,2643.3,4.240967]
[1724272502941,1.97429174,2644.0,2643.3,4.240967]
[1724272503150,23.48202,2644.1,2643.3,4.240967]
[1724272503151,29.23839174,2644.1,2643.3,4.240967]
[1724272503443,25.45631174,2644.1,2643.3,4.240967]
[1724272503645,25.45631174,2644.1,2643.4,0.8024137]
[1724272504176,3.78225,2644.0,2643.4,0.8024137]
[1724272504360,3.78229,2643.9,2643.3,3.5115]
[1724272504718,27.26415,2644.1,2643.3,3.5115]
[1724272504918,23.48202,2644.1,2643.3,3.5115]
[1724272505118,23.48202,2644.1,2643.4,0.729477]
[1724272505732,3.78214,2644.0,2643.4,0.729477]
[1724272506048,7.64014,2644.0,2643.4,0.729477]
[1724272506621,3.858,2644.0,2643.5,3.4685]
[1724272506818,7.63978,2644.3,2643.5,3.4685]
[1724272507127,7.63978,2644.3,2643.7,3.4685]
[1724272507510,11.42157,2644.3,2643.7,3.4685]
[1724272507714,7.63978,2644.3,2643.7,3.4685]
[1724272508767,3.858,2644.3,2643.7,3.4685]
[1724272509113,7.44,2644.5,2643.8,3.4685]
[1724272509312,7.44,2644.5,2644.0,3.4685]
[1724272509726,3.858,2644.6,2644.0,3.2342]
[1724272510117,3.858,2644.6,2644.1,3.2342]
[1724272510421,15.00193,2644.9,2644.3,3.2342]
[1724272510422,11.298,2644.9,2644.3,3.2342]
[1724272510765,11.298,2644.9,2644.5,3.2342]
[1724272511815,7.44,2644.9,2644.5,3.2342]
[1724272512464,7.63845,2645.2,2644.5,3.2342]
[1724272512848,19.67,2645.8,2644.5,3.2342]
[1724272512849,2.36207113,2646.1,2644.9,3.78084]
[1724272513056,3.858,2646.1,2645.4,3.2342]
[1724272513274,4.16519,2646.0,2645.4,3.2342]
[1724272513418,3.77944,2645.9,2645.4,3.2342]
[1724272513624,4.16519,2646.0,2645.4,3.2342]
[1724272514362,7.94457,2646.0,2645.4,3.2342]
[1724272514569,4.16518,2646.0,2645.4,3.2342]
[1724272515234,3.858,2645.5,2645.4,3.2342]
[1724272516824,3.858,2645.5,2645.0,3.4918]
[1724272517878,7.63766,2645.8,2645.0,3.4918]
[1724272519443,7.63766,2645.8,2645.0,7.27243]
[1724272520657,3.858,2645.8,2645.1,3.78057]
[1724272521049,9.561839,2645.8,2645.0,3.4918]
[1724272521569,3.77994,2645.6,2645.0,3.4918]
[1724272523426,3.858,2645.5,2644.8,3.3568]
[1724272523688,3.78021,2645.4,2644.8,3.3568]
[1724272523850,4.37644146,2645.4,2644.8,3.3568]
[1724272526580,0.59623146,2645.4,2644.8,3.3568]
[1724272526777,4.408,2645.5,2644.8,7.13768]
[1724272526778,3.858,2645.5,2644.8,7.13768]
[1724272527282,3.858,2645.5,2644.8,3.3568]
[1724272527577,7.63762,2645.8,2645.1,3.2847]
[1724272527776,5.279962,2645.8,2645.1,3.2847]
[1724272527933,5.279962,2645.8,2645.1,7.06517]
[1724272529050,7.44,2645.9,2645.2,3.78042]
[1724272529576,11.21945,2645.9,2645.1,7.06527]
[1724272530386,7.44,2645.9,2645.3,3.2847]
[1724272530679,3.3046,2646.4,2645.2,3.78036]
[1724272530680,3.77821,2646.8,2646.0,3.2847]
[1724272530891,3.858,2646.5,2645.6,3.2847]
[1724272531035,3.77887,2646.3,2645.6,3.2847]
[1724272531386,3.77882,2646.4,2645.6,7.06454]
[1724272531552,3.77882,2646.4,2645.6,4.369147]
[1724272531553,3.77886,2646.3,2645.6,4.369147]
[1724272531880,7.63702,2646.2,2645.6,3.2847]
[1724272532237,3.858,2646.2,2645.6,3.2847]
[1724272532436,7.08338,2646.4,2645.6,7.06444]
[1724272532437,3.77878,2646.4,2645.6,7.06444]
[1724272533039,3.77888,2646.3,2645.6,3.2847]
[1724272533592,3.77878,2646.4,2645.6,7.06455]
[1724272533791,3.77878,2646.4,2645.6,8.148998]
[1724272534492,7.63663,2646.5,2645.7,3.77971]
[1724272534796,3.858,2646.5,2645.8,3.77953]
[1724272534956,3.858,2646.5,2645.9,0.755924]
[1724272535565,3.858,2646.5,2645.9,4.535324]
[1724272535744,6.7783,2646.7,2645.9,4.535324]
[1724272535944,6.7783,2646.7,2645.9,8.314674]
[1724272536168,3.0,2646.7,2646.0,3.77928]
[1724272536443,3.858,2646.8,2646.1,7.9045954]
[1724272537098,7.63618,2646.8,2646.1,7.9045954]
[1724272537246,3.77839,2646.7,2646.1,3.294]
[1724272537443,3.77854,2646.6,2646.1,3.294]
[1724272537884,3.858,2646.8,2646.1,3.294]
[1724272537885,3.77873,2646.4,2646.1,3.294]
[1724272538128,3.77857,2646.5,2646.1,3.294]
[1724272538251,3.77857,2646.5,2645.8,3.294]
[1724272538440,3.77857,2646.5,2645.9,0.707362]
[1724272538640,3.77865,2646.5,2645.9,0.707362]
[1724272539954,3.77872,2646.4,2645.9,0.707362]
[1724272541485,3.77872,2646.4,2645.8,3.294]
[1724272541486,3.77882,2646.4,2645.8,3.294]
[1724272541642,3.77907,2646.2,2645.8,3.294]
[1724272541859,7.55765,2646.4,2645.8,3.294]
[1724272542075,3.77889,2646.3,2645.8,3.294]
[1724272543079,3.77902,2646.2,2645.8,3.294]
[1724272544316,3.77886,2646.3,2645.8,3.294]
[1724272545152,3.7788,2646.4,2645.8,3.294]
[1724272545560,3.7788,2646.4,2645.8,4.001384]
[1724272546005,7.55765,2646.4,2645.8,4.001384]
[1724272546411,7.5576,2646.4,2645.8,4.001384]
[1724272547091,3.7788,2646.4,2645.8,3.294]
[1724272547269,3.77902,2646.2,2645.8,3.294]
[1724272548384,7.55765,2646.4,2645.8,3.294]
[1724272548582,7.55763,2646.4,2645.8,3.294]
[1724272548816,3.77887,2646.3,2645.8,3.294]
[1724272549116,3.7788,2646.4,2645.8,3.294]
[1724272549269,7.55761,2646.4,2645.8,4.001384]
[1724272549486,3.7788,2646.4,2645.8,4.001384]
[1724272549680,3.7788,2646.4,2645.8,3.294]
[1724272550277,11.298,2646.5,2645.8,3.294]
[1724272551031,7.44,2646.5,2645.9,3.77939]
[1724272551397,7.44,2646.5,2645.8,3.1279]
[1724272551983,3.77844,2646.6,2645.8,6.90746]
[1724272552189,3.77844,2646.6,2645.9,3.1279]
[1724272553089,15.07624,2646.8,2645.9,3.1279]
[1724272553285,3.0,2646.7,2645.9,3.77941]
[1724272553594,15.07624,2646.8,2646.0,3.2628]
[1724272554834,3.77829,2646.7,2646.0,3.2628]
[1724272554996,3.77829,2646.7,2646.1,0.704221]
[1724272555335,7.55695,2646.6,2646.0,3.2628]
[1724272555498,3.77862,2646.5,2646.0,3.2628]
[1724272556036,3.77842,2646.7,2646.0,3.2628]
[1724272556527,3.77843,2646.6,2646.0,3.2628]
[1724272558687,3.77868,2646.5,2646.0,3.2628]
[1724272560388,3.77868,2646.5,2646.0,3.84113639]
[1724272562319,9.41623871,2646.8,2646.2,3.77891]
[1724272562523,6.77793,2647.0,2646.4,3.1347]
[1724272562524,1.9759875,2647.0,2646.4,3.1347]
[1724272562707,5.7537075,2647.1,2646.4,3.1347]
[1724272562906,3.77823,2646.8,2646.4,3.1347]
[1724272563309,3.7785,2646.6,2646.4,3.1347]
[1724272563530,3.77857,2646.5,2646.1,3.1347]
[1724272563694,3.77857,2646.5,2646.1,3.44817]
[1724272563895,3.77857,2646.5,2646.1,3.1347]
[1724272564457,7.55705,2646.6,2646.1,3.1347]
[1724272564656,1.9759875,2646.7,2646.1,3.1347]
[1724272564869,9.5324775,2646.8,2646.1,3.1347]
[1724272565240,3.77852,2646.6,2646.1,3.1347]
[1724272565571,7.55704,2646.6,2646.1,3.1347]
[1724272565722,3.77852,2646.6,2646.1,3.1347]
[1724272566271,3.77852,2646.6,2646.1,3.44817]
[1724272566572,1.9759875,2646.7,2646.1,3.44817]
[1724272566726,5.7543975,2646.7,2646.1,3.44817]
[1724272566933,3.77846,2646.6,2646.1,3.44817]
[1724272567977,5.7531715,2646.7,2646.1,3.44817]
[1724272568162,3.7785,2646.6,2646.2,0.344817]
[1724272568324,3.77844,2646.6,2646.1,3.1347]
[1724272568570,3.77865,2646.5,2646.1,3.1347]
[1724272569672,3.77882,2646.4,2646.1,3.1347]
[1724272570710,1.9748815,2646.5,2646.1,3.1347]
[1724272571344,5.75674807,2646.5,2646.1,3.1347]
[1724272572481,1.97810807,2646.4,2646.1,3.44817]
[1724272574448,1.97810807,2646.5,2646.3,3.1737]
[1724272574730,11.218,2646.9,2646.3,3.1737]
[1724272574731,1.97810807,2646.6,2646.3,3.1737]
[1724272574930,1.97810807,2646.7,2646.4,0.69527]
[1724272575486,1.97810807,2646.7,2646.3,3.1737]
[1724272575945,1.98217009,2646.7,2646.3,3.1737]
[1724272576147,1.98217009,2646.7,2646.3,6.95245]
[1724272576354,1.98217009,2646.7,2646.4,3.3024]
[1724272577689,1.98217009,2646.8,2646.4,3.3024]
[1724272577865,7.44,2646.9,2646.4,4.388408]
[1724272577866,1.98217009,2646.7,2646.4,4.388408]
[1724272578269,1.98217009,2646.8,2646.4,4.388408]
[1724272579093,1.98217009,2646.8,2646.5,3.2444]
[1724272579305,1.98217009,2646.9,2646.5,3.2444]
[1724272579886,1.98217009,2646.9,2646.5,3.3461]
[1724272580200,1.98217009,2647.1,2646.7,7.12437]
[1724272580397,1.98106511,2647.1,2646.7,7.19986268]
[1724272580805,1.98106511,2647.1,2646.7,3.42159268]
[1724272581194,1.98106511,2647.1,2646.7,3.3461]
[1724272581563,1.98106511,2647.0,2646.7,3.3461]
[1724272582177,1.98106511,2647.1,2646.7,3.3461]
[1724272582355,1.98106511,2647.1,2645.5,7.49]
[1724272582558,1.58423525,2646.9,2646.5,3.7785]
[1724272582758,1.58423525,2646.9,2646.7,3.77827]
[1724272582989,1.58423525,2647.0,2646.7,3.77827]
[1724272583327,1.58423525,2647.1,2646.7,4.533947]
[1724272583680,1.58423525,2647.2,2646.7,4.533877]
[1724272584002,1.58423525,2647.1,2646.7,3.7782]
[1724272584217,1.58423525,2647.1,2646.6,3.77841]
[1724272584723,1.58423525,2647.1,2646.7,3.77828]
[1724272585032,1.58423525,2647.1,2646.6,3.77842]
[1724272585321,1.58423525,2647.2,2646.7,0.755689]
[1724272585524,1.58423525,2647.2,2646.8,3.3461]
[1724272586620,9.02423525,2647.3,2646.9,3.77799]
[1724272587382,0.39522349,2647.2,2646.8,7.12423]
[1724272589010,0.39522349,2647.2,2647.0,3.2325]
[1724272589210,0.39522349,2647.2,2647.1,0.701047]
[1724272589601,0.39522349,2647.2,2647.0,3.2325]
[1724272591850,0.39522349,2647.2,2646.7,0.755689]
[1724272591851,4.17281349,2647.2,2646.7,3.2325]
[1724272592060,3.77784,2647.1,2646.7,3.2325]
[1724272592438,3.77789,2647.0,2646.7,3.2325]
[1724272592643,3.77789,2647.0,2646.4,3.2325]
[1724272592867,5.36207525,2647.1,2646.4,3.2325]
[1724272593071,3.858,2646.8,2645.6,3.2325]
[1724272593271,3.0764,2647.0,2645.6,3.2325]